Workbook

Sheet Instructions
A1: Multi-Year Land Rent Value Calculator
A4: Template by: Jon LaPorte, Farm Business Management Educator
A5: Michigan State University Extension
A6: Email: laportej@msu.edu
B9: Each TAB represents a different approach to determining land rent by crop and rotation. Click on a TAB to enter specific information.
B10: These include:
C12: Average Rent by Crop and Rotation | E12: - | F12: Helps to determine the average rent based on crops raised across a rotation.
F13: Enter: | G13: - | H13: Crops raised
G14: - | H14: Rent values by crop
C15: Average Rent by Total Crop Acres | E15: - | F15: Helps to determine the average rent based on crops raised and total farm acres.
F16: Enter: | G16: - | H16: Crops raised
G17: - | H17: Acres by crop
G18: - | H18: Rent values by crop
C19: Notes:
C20: This calculator is intended for use in designing long-term or multi-year farm rental agreements as part of a land rent negotiation process. Estimating the yearly or long-term average rent can be helpful if cash rent will be adjusted based on the crop rotation. For these scenarios, landowners and farm tenants can consider impacts to long-term rent if changes in crop rotation are required.
C24: Farms desiring a fixed cash rent agreement can also benefit from discussions of revenue potential with crop rotations. Designing a fixed cash rent agreement to match the farm's production plans can help achieve long-term sustainability of land access.
C27: Final rent negotiations are recommended to always consider landowner expenses and farmer cost of production needs, in addition to any other property access/use considerations.
C29: Production vs. Non-Production Contract Scenarios:
C30: Production Contracts: Multiple year lease agreements can be common in areas where crops are grown under production contracts. Production contracts can provide a higher source of revenue than commercially grown crops. Adjusting cash rent values in long-term leases to account for years when higher revenue crops are grown can benefit both landowner and farm tenant. Landowners can receive a share of higher revenue generated by their property. Farm tenants can establish a long-term plan for managing rent payments.
C34: Non-Production Contracts: Multiple year lease agreements can also be common for non-production contract farms. Use of multi-year planning is recommended for all size operations, regardless of how crops are marketed. Landowners and farm tenants can benefit from long-term rental agreements that consider both party needs.
C37: Additional Instructions:
C38: Anything in BLUE can be edited without altering any formulas in the spreadsheet.
C40: All values are auto calculated based on various formulas.
C42: A "reset" macro button is provided to clear out example information. All editable fields can be cleared manual for non-macro users or individuals using a mobile device.
D44: Disclaimer: All example crops and values shown within the calculator are for demonstrative purposes only. Examples should not be viewed as recommended rotations of crops being grown or values associated with each crop.

Sheet Avg Rent By Crop and Rotation
C1: Lease Dollar value , by crop and rotation
C3: Crop rotations and crops grown
C4: Option 1 | E4: Option 2 | G4: Option 3 | I4: Option 4 | K4: Option 5 | M4: Option 6
A5: Click on drop down list if you want to change the crop listed ------> | C5: Soybeans | D5: =IFERROR(VLOOKUP(C5,$C$16:$D$21,2,FALSE),0) -> 175 | E5: Commercial Corn | F5: =IFERROR(VLOOKUP(E5,$C$16:$D$21,2,FALSE),0) -> 200 | G5: Soybeans | H5: =IFERROR(VLOOKUP(G5,$C$16:$D$21,2,FALSE),0) -> 175 | I5: Soybeans | J5: =IFERROR(VLOOKUP(I5,$C$16:$D$21,2,FALSE),0) -> 175 | K5: Wheat | L5: =IFERROR(VLOOKUP(K5,$C$16:$D$21,2,FALSE),0) -> 175 | M5: Potatoes | N5: =IFERROR(VLOOKUP(M5,$C$16:$D$21,2,FALSE),0) -> 300
C6: Commercial Corn | D6: =IFERROR(VLOOKUP(C6,$C$16:$D$21,2,FALSE),0) -> 200 | E6: Soybeans | F6: 175 | G6: Seed Corn | H6: =IFERROR(VLOOKUP(G6,$C$16:$D$21,2,FALSE),0) -> 250 | I6: Seed Corn | J6: =IFERROR(VLOOKUP(I6,$C$16:$D$21,2,FALSE),0) -> 250 | K6: Soybeans | L6: =IFERROR(VLOOKUP(K6,$C$16:$D$21,2,FALSE),0) -> 175 | M6: Seed Corn | N6: =IFERROR(VLOOKUP(M6,$C$16:$D$21,2,FALSE),0) -> 250
C7: Potatoes | D7: 300 | E7: Commercial Corn | F7: 200 | G7: Soybeans | H7: =IFERROR(VLOOKUP(G7,$C$16:$D$21,2,FALSE),0) -> 175 | I7: Potatoes | J7: =IFERROR(VLOOKUP(I7,$C$16:$D$21,2,FALSE),0) -> 300 | K7: Commercial Corn | L7: =IFERROR(VLOOKUP(K7,$C$16:$D$21,2,FALSE),0) -> 200 | M7: Soybeans | N7: =IFERROR(VLOOKUP(M7,$C$16:$D$21,2,FALSE),0) -> 175
C8: Seed Corn | D8: 250 | E8: Soybeans | F8: 175 | G8: Seed Corn | H8: =IFERROR(VLOOKUP(G8,$C$16:$D$21,2,FALSE),0) -> 250 | I8: Seed Corn | J8: =IFERROR(VLOOKUP(I8,$C$16:$D$21,2,FALSE),0) -> 250 | K8: Soybeans | L8: =IFERROR(VLOOKUP(K8,$C$16:$D$21,2,FALSE),0) -> 175 | M8: Wheat | N8: =IFERROR(VLOOKUP(M8,$C$16:$D$21,2,FALSE),0) -> 175
C9: None | D9: 0 | E9: None | F9: 0 | G9: None | H9: =IFERROR(VLOOKUP(G9,$C$16:$D$21,2,FALSE),0) -> 0 | I9: Seed Corn | J9: =IFERROR(VLOOKUP(I9,$C$16:$D$21,2,FALSE),0) -> 250 | K9: Wheat | L9: =IFERROR(VLOOKUP(K9,$C$16:$D$21,2,FALSE),0) -> 175 | M9: Potatoes | N9: =IFERROR(VLOOKUP(M9,$C$16:$D$21,2,FALSE),0) -> 300
C10: Averge Rent/Acre | D10: =IFERROR(AVERAGEIF(D5:D9,"<>0"),0) -> 231.25 | E10: Averge Rent/Acre | F10: =IFERROR(AVERAGEIF(F5:F9,"<>0"),0) -> 187.5 | G10: Averge Rent/Acre | H10: =IFERROR(AVERAGEIF(H5:H9,"<>0"),0) -> 212.5 | I10: Averge Rent/Acre | J10: =IFERROR(AVERAGEIF(J5:J9,"<>0"),0) -> 245 | K10: Averge Rent/Acre | L10: =IFERROR(AVERAGEIF(L5:L9,"<>0"),0) -> 180 | M10: Averge Rent/Acre | N10: =IFERROR(AVERAGEIF(N5:N9,"<>0"),0) -> 240
C15: Crop grown | D15: Rent Values
C16: None | D16: 0
A17: Edit crops grown and rent values if those change ------> | C17: Commercial Corn | D17: 200
C18: Soybeans | D18: 175
C19: Seed Corn | D19: 250
C20: Potatoes | D20: 300
A21: Note: Editing crops changes drop down list options | C21: Wheat | D21: 175
C23: Anything in BLUE can be edited without altering any formulas in the spreadsheet
C24: All values are auto calculated based on various formulas

Sheet Avg Rent by Total Crop Acres
D1: Lease Dollar value , by crop and rotation
D3: Crop rotations and crops grown
E4: Total Acres | F4: Total Acres | G4: Total Acres | H4: Total Acres | I4: Total Acres | J4: Total | K4: Avg Rent
A5: Edit acres ------> | D5: Year/acres | E5: 200 | F5: 180 | G5: 220 | H5: 100 | I5: 200 | J5: =SUM(E5:I5) -> 900
A6: Click on drop down list to change crop listed ------> | D6: 2025 | E6: Commercial Corn | F6: Soybeans | G6: Commercial Corn | H6: Potatoes | I6: Seed Corn | J6: =SUM(E7:I7) -> 195500 | K6: =IFERROR(J6/$J$5,0) -> 217.2222222
E7: =IFERROR(VLOOKUP(E6,$D$21:$E$26,2,FALSE)*E$5,0) -> 40000 | F7: =IFERROR(VLOOKUP(F6,$D$21:$E$26,2,FALSE)*F$5,0) -> 31500 | G7: =IFERROR(VLOOKUP(G6,$D$21:$E$26,2,FALSE)*G$5,0) -> 44000 | H7: 30000 | I7: 50000
A8: Edit Years ------> | D8: 2026 | E8: Soybeans | F8: Wheat | G8: Potatoes | H8: Seed Corn | I8: Soybeans | J8: =SUM(E9:I9) -> 192500 | K8: =IFERROR(J8/$J$5,0) -> 213.8888889
E9: =IFERROR(VLOOKUP(E8,$D$21:$E$26,2,FALSE)*E$5,0) -> 35000 | F9: =IFERROR(VLOOKUP(F8,$D$21:$E$26,2,FALSE)*F$5,0) -> 31500 | G9: =IFERROR(VLOOKUP(G8,$D$21:$E$26,2,FALSE)*G$5,0) -> 66000 | H9: 25000 | I9: =IFERROR(VLOOKUP(I8,$D$21:$E$26,2,FALSE)*I$5,0) -> 35000
D10: 2027 | E10: Commercial Corn | F10: Soybeans | G10: Commercial Corn | H10: Soybeans | I10: Wheat | J10: =SUM(E11:I11) -> 168000 | K10: =IFERROR(J10/$J$5,0) -> 186.6666667
E11: =IFERROR(VLOOKUP(E10,$D$21:$E$26,2,FALSE)*E$5,0) -> 40000 | F11: =IFERROR(VLOOKUP(F10,$D$21:$E$26,2,FALSE)*F$5,0) -> 31500 | G11: =IFERROR(VLOOKUP(G10,$D$21:$E$26,2,FALSE)*G$5,0) -> 44000 | H11: =IFERROR(VLOOKUP(H10,$D$21:$E$26,2,FALSE)*H$5,0) -> 17500 | I11: =IFERROR(VLOOKUP(I10,$D$21:$E$26,2,FALSE)*I$5,0) -> 35000
D12: 2028 | E12: Wheat | F12: Potatoes | G12: Commercial Corn | H12: Soybeans | I12: Potatoes | J12: =SUM(E13:I13) -> 210500 | K12: =IFERROR(J12/$J$5,0) -> 233.8888889
E13: =IFERROR(VLOOKUP(E12,$D$21:$E$26,2,FALSE)*E$5,0) -> 35000 | F13: =IFERROR(VLOOKUP(F12,$D$21:$E$26,2,FALSE)*F$5,0) -> 54000 | G13: =IFERROR(VLOOKUP(G12,$D$21:$E$26,2,FALSE)*G$5,0) -> 44000 | H13: =IFERROR(VLOOKUP(H12,$D$21:$E$26,2,FALSE)*H$5,0) -> 17500 | I13: =IFERROR(VLOOKUP(I12,$D$21:$E$26,2,FALSE)*I$5,0) -> 60000
D14: 2029 | E14: Potatoes | F14: Commercial Corn | G14: Soybeans | H14: Wheat | I14: Commercial Corn | J14: =SUM(E15:I15) -> 192000 | K14: =IFERROR(J14/$J$5,0) -> 213.3333333
E15: =IFERROR(VLOOKUP(E14,$D$21:$E$26,2,FALSE)*E$5,0) -> 60000 | F15: =IFERROR(VLOOKUP(F14,$D$21:$E$26,2,FALSE)*F$5,0) -> 36000 | G15: =IFERROR(VLOOKUP(G14,$D$21:$E$26,2,FALSE)*G$5,0) -> 38500 | H15: =IFERROR(VLOOKUP(H14,$D$21:$E$26,2,FALSE)*H$5,0) -> 17500 | I15: =IFERROR(VLOOKUP(I14,$D$21:$E$26,2,FALSE)*I$5,0) -> 40000
D20: Crop grown | E20: Rent Values
D21: None | E21: 0
A22: Edit crops grown and rent values ------> | D22: Commercial Corn | E22: 200
D23: Soybeans | E23: 175
A24: Note: Editing crops changes drop down list options | D24: Seed Corn | E24: 250
D25: Potatoes | E25: 300
D26: Wheat | E26: 175
D28: Anything in BLUE can be edited without altering any formulas in the spreadsheet
D29: All values are auto calculated based on various formulas
